Cogmind - Beta 16 @@@ ROGUE MODE // 2026.01.04 @ 23:20:37 Player: McSaucyNugget Result: Destroyed by Y-45 Defender with Beam Rifle Performance ------------- Evolutions (1) 500 Regions Visited (3) 600 Robots Destroyed (3) 15 Value Destroyed (31) 31 Prototype IDs (3) 60 Alien Tech Used (0) 0 Bonus (200) 200 TOTAL SCORE: 1406 Bonus ------- Pacifist 200 Cogmind --------- Core Integrity 0/400 Matter 209/300 Energy 99/100 System Corruption 0% Temperature Cool (9) Movement Core (50) Location -9/Storage Parts ------- > --- POWER (1) -------- (None) > --- PROPULSION (3) --- (None) > --- UTILITY (3) ------ (None) > --- WEAPON (2) ------- (None) > --- INVENTORY (5) ---- Cooled Ion Engine Light Deuterium Engine Large Storage Unit Compact Matter Pod (0) Improved Terrain Scan Processor Peak State ------------ > --- POWER ------------ Ion Engine > --- PROPULSION ------- Hover Unit Hover Unit Hover Unit > --- UTILITY ---------- Medium Storage Unit Structural Scanner Sensor Array > --- WEAPON ----------- Flail > --- INVENTORY -------- Light Ion Engine Light Deuterium Engine Hover Unit Large Storage Unit High-capacity Storage Unit Compact Matter Pod Improved Terrain Scan Processor [Rating: 10] Favorites ----------- Power Ion Engine Engine Ion Engine Propulsion Hover Unit Treads Light Treads Hover Unit Hover Unit Utility Structural Scanner Device Structural Scanner Storage Medium Storage Unit Weapon Flail Impact Weapon Flail Build | -11 -10 -9 -9 ------- Run | Yrd Mat Mat Sto Slots Evolved 2 | . . 2 . Power . | . . . . Propulsion 1 | . . 1 . Utility 1 | . . 1 . Weapon . | . . . . Parts Attached 18 | 4 6 4 4 Power 4 | 1 . . 3 Engine 4 | 1 . . 3 Core . | . . . . Reactor . | . . . . Propulsion 6 | 2 2 2 . Treads 2 | 2 . . . Leg . | . . . . Wheel . | . . . . Hover 4 | . 2 2 . Flight . | . . . . Utility 7 | 1 4 1 1 Device 4 | . 2 1 1 Storage 3 | 1 2 . . Processor . | . . . . Hackware . | . . . . Protection . | . . . . Artifact . | . . . . Weapon 1 | . . 1 . Energy Gun . | . . . . Energy Cannon . | . . . . Ballistic Gun . | . . . . Ballistic Cannon . | . . . . Launcher . | . . . . Special Weapon . | . . . . Impact Weapon 1 | . . 1 . Slashing Weapon . | . . . . Piercing Weapon . | . . . . Special Melee Weapon . | . . . . Unidentified Prototypes 1 | . . . 1 Parts Lost 8 | . . 5 3 Power 2 | . . 1 1 Propulsion 4 | . . 2 2 Utility 1 | . . 1 . Weapon 1 | . . 1 . Highest Loss Streak 4 | . . 3 4 To Critical Strikes 1 | . . 1 . Average Backups 5 | 3 5 6 5 Power 1 | 1 1 1 2 Propulsion 1 | 1 1 1 . Utility 2 | . 1 3 3 Weapon . | . . . . Tool/Special . | . . . . Unused Backups 7 | . 3 1 3 Power 2 | . 1 . 1 Propulsion 2 | . 2 . . Utility 3 | . . 1 2 Weapon . | . . . . Tool/Special . | . . . . Average Slot Usage (%) 51 | . 44 75 19 Engine 3 | . . 8 2 Treads 4 | . 10 . . Hover 19 | . 17 27 7 Device 14 | . 11 20 9 Storage 5 | . 4 9 . Impact Weapon 3 | . . 8 . Peak Build Rating 10 | 4 4 10 8 Average Rating 4 | 2 3 8 2 On Entrance 2 | . 2 4 5 Avg Prop Armor Cover (%) 38 | 41 38 . . Naked Turns 52 | . . . 52 Heaviest Build 19 | 10 11 19 10 Greatest Support 40 | 40 12 18 12 Greatest Overweight (x) 1 | . . 1 1 Average Overweight (x) . | . . . . Largest Inventory Capacity 15 | 8 15 10 5 Average Capacity 6 | 5 6 9 5 Most Carried 8 | 5 7 8 5 Average Carried 5 | 3 5 6 5 Final Capacity 10 | 5 10 5 5 Final Carried 7 | 5 7 5 5 Class Distribution -------------------- 100% | Mutant Dominant Class ---------------- Mutant | -10/Materials Mutant | -9/Materials Mutant | -9/Storage Resources | -11 -10 -9 -9 ----------- Run | Yrd Mat Mat Sto Matter Collected 267 | 240 . 27 . Remotely . | . . . . Salvage Created 44 | . . 44 . Parts . | . . . . Haulers Intercepted . | . . . . Recyclers Shooed . | . . . . Parts Field Recycled . | . . . . Retrieved Matter . | . . . . Parts Self-Destructed . | . . . . Prevented . | . . . . Parts Restored . | . . . . Kills | -11 -10 -9 -9 ------- Run | Yrd Mat Mat Sto Combat Hostiles Destroyed 2 | . . 2 . Melee 1 | . . 1 . Classes Destroyed 2 | . . 2 . Worker 1 | . . 1 . Swarmer 2 | . . 2 . Best Kill Streak 3 | . . 3 . Combat Bots Only 2 | . . 2 . Max Kills in Single Turn 1 | . . 1 . Gunslinging . | . . . . Exploded . | . . . . Melee 1 | . . 1 . Uniques/NPCs Destroyed . | . . . . Combat | -11 -10 -9 -9 -------- Run | Yrd Mat Mat Sto Hostile Shots Fired 100 | . 9 52 39 Missed 29 | . 3 11 15 Hits 71 | . 6 41 24 Projectile 71 | . 6 41 24 Critical Strikes 1 | . . 1 . Damage Taken 789 | . 47 393 349 Core 431 | . 29 142 260 Absorbed by Shields . | . . . . Core Remaining (%) 94 | 100 88 . . Volleys Fired . | . . . . Largest . | . . . . Hottest . | . . . . Shots Fired . | . . . . Gun . | . . . . Cannon . | . . . . Launcher . | . . . . Special . | . . . . Kinetic . | . . . . Thermal . | . . . . Explosive . | . . . . Electromagnetic . | . . . . Robot Hit Streak . | . . . . Robot Miss Streak . | . . . . Penetration Max . | . . . . Secondary Targets . | . . . . Shots Hit Robots 5 | . . 5 . Core Hits 2 | 1 1 . . Critical Kills . | . . . . Critical Parts Destroyed 2 | . . 2 . Critical Strikes 2 | . . 2 . Smash 2 | . . 2 . Melee Attacks 15 | . . 15 . Impact 15 | . . 15 . Slashing . | . . . . Piercing . | . . . . Sneak Attacks 1 | . . 1 . Combat Hostiles . | . . . . Follow-up Attacks . | . . . . Damage Inflicted 273 | 1 3 265 4 Guns . | . . . . Cannons . | . . . . Explosions . | . . . . Melee 265 | . . 265 . Ramming 8 | 1 3 . 4 Kinetic . | . . . . Thermal . | . . . . Explosive . | . . . . Electromagnetic . | . . . . Impact 265 | . . 265 . Slashing . | . . . . Piercing . | . . . . Highest Corruption . | . . . . Average Corruption . | . . . . Corruption Purged . | . . . . Corruption Blocked . | . . . . Overload Shots . | . . . . Overflow Damage 168 | . . 168 . Projectiles . | . . . . Explosions . | . . . . Melee 168 | . . 168 . Knockbacks 1 | . . 1 . Impact 1 | . . 1 . Kinetic . | . . . . Secondary . | . . . . Self-Inflicted Damage 3 | . 1 . 2 Shots . | . . . . Rammed 10 | 5 3 . 2 Targets Rammed 10 | 5 3 . 2 Kicked . | . . . . Crushed . | . . . . Highest Temperature . | . . . . Average Temperature . | . . . . Received Heat Transfer 120 | . . 48 72 Siege Activations . | . . . . Martial Activations . | . . . . Shielding Activations . | . . . . Robots Disrupted . | . . . . Combat Hostiles . | . . . . Robots Corrupted 2 | . . 2 . Combat Hostiles 1 | . . 1 . Parts Fried 2 | . . 2 . Impact Corruptions 7 | . . 7 . Robots Melted . | . . . . Combat Hostiles . | . . . . Parts Melted . | . . . . Heat Transferred . | . . . . Parts Sabotaged . | . . . . Parts Stolen . | . . . . Parts Stripped . | . . . . Power Chain Reactions . | . . . . Alert | -11 -10 -9 -9 ------- Run | Yrd Mat Mat Sto Maximum Alert Level . | . . . . Low Security (%) 100 | 100 100 100 100 Level 1 . | . . . . Level 2 . | . . . . Level 3 . | . . . . Level 4 . | . . . . Level 5 . | . . . . High Security . | . . . . Max Security . | . . . . Peak Influence 76 | . 24 76 31 Initial 31 | . . . 31 Average 10 | . 3 24 9 Influence Increases 234 | . 38 181 15 Destroy 0b10 Robot/C 40 | . . 40 . Destroy 0b10 Robot/NC 5 | . . 5 . Successful Hack 38 | . 38 . . Disable Machine 15 | . . 15 . Destroy Structure 1 | . . 1 . Partial Spotted 15 | . . . 15 Lose Combat Pursuer 120 | . . 120 . Influence Decreases 229 | . 38 105 86 Entered New Map 45 | . . . 45 Time Decay 123 | . 38 65 20 Lost Part 61 | . . 40 21 Squads Dispatched 3 | . 1 1 1 Investigation . | . . . . Extermination . | . . . . Reinforcement 3 | . 1 1 1 Assault . | . . . . Garrison . | . . . . Intercept . | . . . . Searches Triggered . | . . . . Construction Impeded . | . . . . Haulers Reinforced . | . . . . Active Scanning Responses . | . . . . Cargo Convoy Interrupts . | . . . . Stealth | -11 -10 -9 -9 --------- Run | Yrd Mat Mat Sto Distress Signals 2 | . . . 2 Communications Jammed . | . . . . Distress Signals . | . . . . Times Spotted 34 | . 8 17 9 Peak Tracking Total 11 | . 3 11 9 Tactical Retreats 3 | . . 3 . Traps | -11 -10 -9 -9 ------- Run | Yrd Mat Mat Sto Traps Triggered 2 | . . 1 1 Indirectly . | . . . . Trap Hack Attempts . | . . . . Triggered . | . . . . Disarmed . | . . . . Reprogrammed . | . . . . Reused . | . . . . Traps Extracted . | . . . . Installed . | . . . . Triggered . | . . . . Machines | -11 -10 -9 -9 ---------- Run | Yrd Mat Mat Sto Machines Disabled 1 | . . 1 . Max in Single Turn 1 | . . 1 . Machines Repaired . | . . . . Machines Dismantled . | . . . . Machines Sabotaged . | . . . . Overloaded Fab Kills . | . . . . Hacking | -11 -10 -9 -9 --------- Run | Yrd Mat Mat Sto Machines Accessed 10 | . 7 2 1 Terminals 7 | . 5 1 1 Fabricators . | . . . . Repair Stations . | . . . . Recycling Units 3 | . 2 1 . Scanalyzers . | . . . . Garrison Access . | . . . . Total Hacks 32 | . 29 2 1 Successful 19 | . 17 1 1 Failed 13 | . 12 1 . Catastrophic 2 | . 1 1 . Database Lockouts . | . . . . Manual 15 | . 14 1 . Terminals 24 | . 22 1 1 Fabricators . | . . . . Repair Stations . | . . . . Recycling Units 8 | . 7 1 . Scanalyzers . | . . . . Garrison Access . | . . . . Terminal Hacks 8 | . 7 . 1 Part Schematic 1 | . 1 . . Robot Analysis 2 | . 2 . . Prototype ID Bank 1 | . 1 . . Open Door 1 | . . . 1 Locate Traps 2 | . 2 . . Zone Layout 1 | . 1 . . Fabricator Hacks . | . . . . Repair Station Hacks . | . . . . Recycling Unit Hacks 3 | . 2 1 . Process 1 | . 1 . . Retrieve Components 2 | . 1 1 . Scanalyzer . | . . . . Garrison Access Hacks . | . . . . Unauthorized Hacks 8 | . 8 . . Terminals 8 | . 8 . . Assimilate 1 | . 1 . . Botnet 2 | . 2 . . Skim 5 | . 5 . . Fabricators . | . . . . Repair Stations . | . . . . Recycling Units . | . . . . Scanalyzers . | . . . . Garrison Access . | . . . . Data Cores Recovered . | . . . . Used . | . . . . Hacking Detections 8 | . 6 2 . Full Trace Events . | . . . . Feedback Events . | . . . . Feedback Blocked . | . . . . Robot Schematics Acquired . | . . . . Robots Built . | . . . . Authchips . | . . . . Time . | . . . . Total Robot Build Rating . | . . . . Part Schematics Acquired 1 | . 1 . . Parts Built . | . . . . Authchips . | . . . . Time . | . . . . Total Part Build Rating . | . . . . Part Studies Acquired . | . . . . Parts Repaired . | . . . . Time . | . . . . Parts Recycled . | . . . . Recycled Matter 3 | . 3 . . Retrieved Matter . | . . . . Retrieved Components 2 | . . 2 . Parts Scanalyzed . | . . . . Part Schematics Acquired . | . . . . Parts Damaged . | . . . . Bothacking | -11 -10 -9 -9 ------------ Run | Yrd Mat Mat Sto Used RIF Installer . | . . . . Robots Hacked . | . . . . Non-combat . | . . . . Combat . | . . . . Robot Hacks Applied . | . . . . Relay Couplers Released . | . . . . Fabnet Peak Effective % . | . . . . Robots Rewired . | . . . . Allies Hacked . | . . . . Hacks Repelled . | . . . . Allies | -11 -10 -9 -9 -------- Run | Yrd Mat Mat Sto Total Allies . | . . . . Largest Group . | . . . . Highest-Rated Group . | . . . . Highest-Rated Ally . | . . . . Total Orders . | . . . . Ally Attacks . | . . . . Total Damage . | . . . . Kills . | . . . . Allies Corrupted . | . . . . Allies Melted . | . . . . Intel | -11 -10 -9 -9 ------- Run | Yrd Mat Mat Sto Active Infowar (turns) 408 | . 189 186 33 Sensors 206 | . 5 168 33 Structural 408 | . 189 186 33 Robot Analysis Total 2 | . 2 . . Derelict Logs Recovered . | . . . . Drone Launches . | . . . . Drone Recoveries . | . . . . Exploration | -11 -10 -9 -9 ------------- Run | Yrd Mat Mat Sto Turns Passed 595 | 93 229 186 87 Spaces Moved 778 | 72 390 174 142 Core 342 | 36 203 . 103 Treads 36 | 36 . . . Legs . | . . . . Wheels . | . . . . Hover 400 | . 187 174 39 Flight . | . . . . Fastest Speed 50 | 50 50 52 50 Average Speed 63 | 105 53 78 53 Slowest Speed 160 | 160 80 116 100 Overloaded Moves . | . . . . Propulsion Burnouts . | . . . . Robots Hopped . | . . . . Potential Cave-ins . | . . . . Cave-ins Triggered . | . . . . Exploration Rate (%) 33 | 4 73 22 36 Regions Visited 3 Branch Regions 1 Pre-discovered Areas . | . . . . Known Exits Taken . | . . . . Unknown Exits Taken 3 | 1 1 1 . Scrap Searched . | . . . . Spaces Dug 2 | . . 2 . Terrain Destroyed 2 | . . 2 . Melee 2 | . . 2 . Projectile . | . . . . AOE . | . . . . Terrain Rammed . | . . . . Walls Destroyed . | . . . . Machines Disabled . | . . . . Actions | -11 -10 -9 -9 --------- Run | Yrd Mat Mat Sto Total 850 | 85 413 200 152 Wait 1 | . 1 . . Move 775 | 71 389 173 142 Hop . | . . . . Pick Up 12 | 3 6 3 . Fast Attach 14 | 4 5 2 3 Attach 6 | . 1 5 . Detach 4 | 2 1 1 . Swap 1 | . . . 1 Drop 12 | . 7 1 4 Fire . | . . . . Melee 15 | . . 15 . Ram 5 | 1 2 . 2 Kick . | . . . . Crush 5 | 4 1 . . Escape Stasis . | . . . . Rewire . | . . . . Trap . | . . . . Miscellaneous . | . . . . Route ------- -11/Scrapyard -10/Materials (discovered 4 exits: *Mat x2 / [*Min x2]) -9/Materials -9/Storage History --------- Turn | Location | Event 11 | -11/Scrapyard | Discovered new exit (range 15) 94 | -11/Scrapyard | Entered Materials 118 | -10/Materials | Discovered new exit (range 8) 126 | -10/Materials | Discovered new exit (range 16) 187 | -10/Materials | Discovered new exit (range 10) 236 | -10/Materials | Discovered new exit (range 14) 315 | -10/Materials | Build established: Mutant 323 | -10/Materials | Entered another Materials area 323 | -9/Materials | Evolved 2 slots: Propulsion x1, Utility x1 501 | -9/Materials | Lost 3 parts (1p2n) 503 | -9/Materials | Discovered new exit (range 12) 509 | -9/Materials | Entered Storage 546 | -9/Storage | Core integrity fell below 50% 573 | -9/Storage | Lost 4 parts (1p2n1w) 591 | -9/Storage | Core integrity fell below 20% 596 | -9/Storage | Destroyed by Y-45 Defender with Beam Rifle Last Messages --------------- 00534_ A bubble of electromagnetic force engulfs the area. 00534_ Door malfunctions. 00534_ EMP Trap short circuited. 00534_ A bubble of electromagnetic force engulfs the area. 00536_ Hover Unit destroyed. 00542_ Dropped Structural Scanner. 00542_ Dropped Sensor Array. 00542_ Lgt. Ion Engine destroyed. 00556_ W-16 Scout sends out distress signal. 00558_ Slammed into W-16 Scout. 00562_ Connecting with Door Terminal... 00562_ Current location identified: Storage >>Open(Door) Sealed Heavy Doors opened. 00565_ Acquired Drone Bay. 00567_ Dropped Drone Bay. 00587_ O-16 Technician sends out distress signal. 00587_ O-16 Technician: "IFF HANDSHAKE FAILED. SECURING TERMINAL." 00593_ ALERT: Hostiles spotted, dispatching reinforcements to Terminal S013. Map ----- +----------------------------------------------------+ | ??????????????????????# ####### # #### | | ??????????????##########+####### = !# | | ??????????????? # + [ " | | ??????????????????" # ##### * !# | | ?????????????????????" + #???# ! ###### | | ?????????????????????" # #???# ###### | | ?????????????????????" + #???# #????? | | ?????????????# ?""???" # #???#############????? | | ?????????????# """ # #????????????????????? | | ?????????????# # #????????????????????? | | ?????????????########+## #????????????????????? | | ????????????????????# #?????#??????????????? | | ?????????########???# #???? #??????????????? | | ?????????# #???# #??"" #??????????????? | | ?????????# """ ##### Y a #? #??????????????? | | ?????????# """ a # #??????????????? | | ?????????# """ # + #??????????????? | | ?????????# # # "" #??????????????? | | ?????????# ; #?"T #??????????????? | | ?????????####+###u #??" #??????????????? | | ??????????? k #???????? #??????????? | | ????????? ss ar####### w####???????? | | ??????? s k ?????? | | ????? g ?????? | | ???# k ?????? | | ???# @ #########T#####??????? | | ???# ###+############ #????????????????????? | | ???# ???????????????# #????????????????????? | | ???# ####????????????????# #????????????????????? | | ???#?????????????????????# #????????????????????? | | ????????????????????????? ????????????????????? | | ????????????????????????? ????????????????????? | | ????????????????????????? ????????????????????? | | ????????????????????????? ????????????????????? | | ???????????????????????? ???????????????????? | | ????????????????????????# #???????????????????? | | ????????????????????????# #???????????????????? | | ????????????????????????# #???????????????????? | | ????????????????????????# #???????????????????? | | ????????????????????????# #???????????????????? | | ????????????????????????? ????????????????????? | | ????????????????????????? ????????????????????? | | ????????????????????????? ????????????????????? | | ????????????????????????????????????????????????? | | ????????????????????????????????????????????????? | | ????????????????????????????????????????????????? | | ????????????????????????????????????????????????? | | ????????????????????????????????????????????????? | | ????????????????????????????????????????????????? | | ????????????????????????????????????????????????? | +----------------------------------------------------+ Best States ------------- Heat Dissipation 28 Energy Generation 10 Energy Capacity 250 Matter Stores 300 Matter Capacity 300 Sight Range 16 Robot Scan Range 14 Terrain Scan Density 10 Evasion (%) 54 Recoil Reduction 2 Item Schematics ----------------- Hammer | -10/Materials | Hacked Robot Schematics ------------------ None Fabricated ------------ Nothing Repaired ---------- Nothing Studied --------- None Alien Tech Used ----------------- None Achievements -------------- None Challenges ------------ None Game ------ Seed CompanionMicrowarpLog Manual? 0 Play Time 00:11:02 Cumulative 267.2 hours Start 2026.01.04 @ 23:10:13 End 2026.01.04 @ 23:20:37 Sessions 1 Manual Loads 0 Difficulty Rogue Special Mode None Game No. 112 Rogue 112 Adventurer 0 Explorer 0 Win Type - Total 26 Types 10/3/6/2/1/0/0/1/1/2 Lore% 80 Gallery% 77 Achievement% 63 Wizard Run 0 Options --------- Layout 0 ASCII 0 Keyboard 1 Movement Vi Keybinds 0 Fullscreen 2 Font 18/SmallcapsGlow Map View 76x50 Zoom Use 0% Tactical HUD 1 Map Filters NONE Filters NONE Steam 1 RUN: 023cd875-f4ab-4fc1-87fd-8f192333ad16